fUSD/lending_fUSD_20260615
["ID","MTS","AMOUNT","RATE_DAILY","PERIOD"]
[425099699,1781495440000,-208.716078,0.00015876,2]
[425099707,1781495440000,-323.279078,0.00015955,2]
[425099710,1781495440000,-4071.41022379,0.00016,2]
[425099708,1781495440000,-1500.0,0.00015965,2]
[425099702,1781495440000,-4071.41022379,0.000159,2]
[425099705,1781495440000,-635.06,0.00015944,2]
[425099701,1781495440000,-374.34,0.0001588,2]
[425099706,1781495440000,-184.672593,0.00015955,2]
[425099704,1781495440000,-374.34,0.00015925,2]
[425099630,1781495440000,-500.0,0.00014899,2]
[425099681,1781495440000,-674.39,0.0001524,2]
[425099682,1781495440000,-4071.41022379,0.000153,2]
[425099696,1781495440000,-472.950393,0.00015854,2]
[425099680,1781495440000,-1440.98771749,0.00015126,2]
[425099686,1781495440000,-436.81491861,0.00015451,2]
[425099638,1781495440000,-690.26,0.00014999,2]
[425099634,1781495440000,-690.26,0.00014999,2]
[425099632,1781495440000,-690.26,0.00014999,2]
[425099636,1781495440000,-690.26,0.00014999,2]
[425099653,1781495440000,-690.26,0.00014999,2]
[425099651,1781495440000,-690.26,0.00014999,2]
[425099661,1781495440000,-690.26,0.00014999,2]
[425099657,1781495440000,-690.26,0.00014999,2]
[425099667,1781495440000,-690.26,0.00014999,2]
[425099655,1781495440000,-690.26,0.00014999,2]
[425099671,1781495440000,-690.45,0.00014999,2]
[425099663,1781495440000,-690.26,0.00014999,2]
[425099665,1781495440000,-690.26,0.00014999,2]
[425099685,1781495440000,-4071.41022379,0.000154,2]
[425099687,1781495440000,-374.34,0.00015546,2]
[425099678,1781495440000,-150.0,0.00015068,2]
[425099683,1781495440000,-374.34,0.00015316,2]
[425099677,1781495440000,-150.0,0.00015068,2]
[425099684,1781495440000,-500.0,0.00015399,2]
[425099676,1781495440000,-500.0,0.00015027,2]
[425099669,1781495440000,-690.26,0.00014999,2]
[425099673,1781495440000,-385.61,0.00015,2]
[425099659,1781495440000,-690.26,0.00014999,2]
[425099679,1781495440000,-4071.41022379,0.000151,2]
[425099753,1781495441000,-1440.98771749,0.00016723,2]
[425099756,1781495441000,-674.39,0.00016764,2]
[425099757,1781495441000,-374.34,0.00016772,2]
[425099748,1781495441000,-374.34,0.00016659,2]
[425099752,1781495441000,-374.34,0.00016717,2]
[425099759,1781495441000,-374.34,0.00016808,2]
[425099743,1781495441000,-374.34,0.00016577,2]
[425099744,1781495441000,-374.34,0.00016598,2]
[425099747,1781495441000,-214.977451,0.00016647,2]
[425099746,1781495441000,-374.34,0.00016639,2]
[425099745,1781495441000,-374.34,0.00016619,2]
[425099749,1781495441000,-374.34,0.00016678,2]
[425099750,1781495441000,-374.34,0.00016698,2]
[425099768,1781495441000,-1613.0535,0.00017061,2]
[425099754,1781495441000,-374.34,0.00016735,2]
[425099758,1781495441000,-374.34,0.0001679,2]
[425099751,1781495441000,-168.44,0.00016712,2]
[425099762,1781495441000,-374.34,0.00016861,2]
[425099760,1781495441000,-374.34,0.00016826,2]
[425099769,1781495441000,-181.24,0.000171,9]
[425099764,1781495441000,-374.34,0.00016895,2]
[425099765,1781495441000,-374.34,0.00016911,2]
[425099770,1781495441000,-191.664402,0.00017173,2]
[425099771,1781495441000,-338.95,0.00017232,2]
[425099766,1781495441000,-374.34,0.00016928,2]
[425099740,1781495441000,-374.34,0.00016534,2]
[425099755,1781495441000,-374.34,0.00016754,2]
[425099742,1781495441000,-262.29225757,0.00016568,2]
[425099716,1781495441000,-374.34,0.00016114,2]
[425099739,1781495441000,-1555.5,0.00016513,2]
[425099711,1781495441000,-300.0,0.00016,2]
[425099712,1781495441000,-374.34,0.00016007,2]
[425099761,1781495441000,-374.34,0.00016843,2]
[425099719,1781495441000,-374.34,0.00016177,2]
[425099715,1781495441000,-374.34,0.0001608,2]
[425099723,1781495441000,-374.34,0.00016265,2]
[425099722,1781495441000,-374.34,0.00016237,2]
[425099718,1781495441000,-164.09,0.00016171,2]
[425099717,1781495441000,-374.34,0.00016146,2]
[425099713,1781495441000,-374.34,0.00016044,2]
[425099721,1781495441000,-374.34,0.00016208,2]
[425099714,1781495441000,-164.92,0.00016051,2]
[425099725,1781495441000,-374.34,0.0001632,2]
[425099724,1781495441000,-374.34,0.00016293,2]
[425099736,1781495441000,-374.34,0.0001649,2]
[425099735,1781495441000,-5374.0,0.00016474,2]
[425099726,1781495441000,-374.34,0.00016346,2]
[425099728,1781495441000,-374.34,0.00016396,2]
[425099727,1781495441000,-374.34,0.00016371,2]
[425099730,1781495441000,-374.34,0.0001642,2]
[425099733,1781495441000,-374.34,0.00016467,2]
[425099734,1781495441000,-579.04,0.00016474,2]
[425099732,1781495441000,-374.34,0.00016444,2]
[425099731,1781495441000,-808.7,0.00016438,2]
[425099729,1781495441000,-4071.41022379,0.000164,2]
[425099738,1781495441000,-374.34,0.00016512,2]
[425099737,1781495441000,-4071.41022379,0.000165,2]
[425099741,1781495441000,-374.34,0.00016556,2]
[425099767,1781495441000,-210.666844,0.00016952,2]
[425099720,1781495441000,-4071.41022379,0.000162,2]
[425099773,1781495441000,-1672.7364795,0.00017609,2]
[425099802,1781495441000,-1934.38338736,0.00019801,2]
[425099804,1781495441000,-200.0,0.0001984,2]
[425099807,1781495441000,-5374.0,0.00019968,2]
[425099806,1781495441000,-579.04,0.00019968,2]
[425099811,1781495441000,-1479.0,0.0002,2]
[425099809,1781495441000,-100000.0,0.0002,2]
[425099810,1781495441000,-1418.689983,0.0002,2]
[425099815,1781495441000,-1835.0,0.0002,2]
[425099813,1781495441000,-7800.92,0.0002,2]
[425099819,1781495441000,-242.0,0.0002,2]
[425099820,1781495441000,-254.0,0.0002,2]
[425099814,1781495441000,-400.0,0.0002,2]
[425099818,1781495441000,-661.0,0.0002,2]
[425099821,1781495441000,-877.0,0.0002,2]
[425099817,1781495441000,-182.0,0.0002,2]
[425099812,1781495441000,-3992.57792136,0.0002,2]
[425099816,1781495441000,-212.0,0.0002,2]
[425099823,1781495441000,-426.0,0.0002,2]
[425099822,1781495441000,-156.0,0.0002,2]
[425099824,1781495441000,-228.0,0.0002,2]
[425099825,1781495441000,-157.0,0.0002,2]
[425099828,1781495441000,-587.0,0.0002,2]
[425099830,1781495441000,-2005.9555727,0.00020349,2]
[425099826,1781495441000,-261.0,0.0002,2]
[425099827,1781495441000,-216.0,0.0002,2]
[425099829,1781495441000,-173.53935065,0.000202,2]
[425099763,1781495441000,-374.34,0.00016878,2]
[425099801,1781495441000,-1000.0,0.00019638,2]
[425099803,1781495441000,-500.0,0.00019803,2]
[425099831,1781495441000,-808.7,0.00020381,2]
[425099799,1781495441000,-1152.7614813,0.00019451,2]
[425099783,1781495441000,-3558.0,0.00018387,2]
[425099774,1781495441000,-191.664402,0.00017688,2]
[425099780,1781495441000,-674.39,0.00018288,2]
[425099772,1781495441000,-635.06,0.00017538,2]
[425099782,1781495441000,-1364.377,0.00018387,2]
[425099779,1781495441000,-1734.62772924,0.00018157,2]
[425099778,1781495441000,-150.0,0.00018133,7]
[425099776,1781495441000,-309.89220436,0.00017828,2]
[425099777,1781495441000,-350.0,0.00018,2]
[425099781,1781495441000,-1440.98771749,0.00018319,2]
[425099784,1781495441000,-631.398,0.00018387,2]
[425099788,1781495441000,-150.144,0.00018387,2]
[425099792,1781495441000,-1798.80895522,0.00018705,2]
[425099775,1781495441000,-165.60896302,0.0001771,2]
[425099785,1781495441000,-1275.0,0.00018387,2]
[425099800,1781495441000,-262.29225757,0.00019634,2]
[425099797,1781495441000,-274.81922984,0.000192,2]
[425099796,1781495441000,-635.06,0.00019133,2]
[425099808,1781495441000,-173.53935065,0.0002,2]
[425099798,1781495441000,-1865.36488656,0.00019253,2]
[425099795,1781495441000,-202.58416,0.00019,2]
[425099787,1781495441000,-1228.169,0.00018387,2]
[425099805,1781495441000,-1440.98771749,0.00019916,2]
[425099793,1781495441000,-1308.0,0.00019,2]
[425099789,1781495441000,-934.0,0.00018387,2]
[425099791,1781495441000,-808.7,0.0001841,2]
[425099786,1781495441000,-383.0,0.00018387,2]
[425099790,1781495441000,-3645.0,0.00018387,2]
[425099794,1781495441000,-303.73,0.00019,2]
[425099868,1781495442000,-500.0,0.00020897,2]
[425099881,1781495442000,-500.0,0.00020897,2]
[425099882,1781495442000,-500.0,0.00020897,2]
[425099869,1781495442000,-151.0,0.00020897,2]
[425099865,1781495442000,-500.0,0.00020897,2]
[425099857,1781495442000,-151.0,0.00020897,2]
[425099862,1781495442000,-500.0,0.00020897,2]
[425099864,1781495442000,-151.0,0.00020897,2]
[425099880,1781495442000,-500.0,0.00020897,2]
[425099863,1781495442000,-151.0,0.00020897,2]
[425099867,1781495442000,-151.0,0.00020897,2]
[425099884,1781495442000,-500.0,0.00020898,2]
[425099878,1781495442000,-151.0,0.00020897,2]
[425099873,1781495442000,-500.0,0.00020897,2]
[425099875,1781495442000,-151.0,0.00020897,2]
[425099871,1781495442000,-151.0,0.00020897,2]
[425099877,1781495442000,-500.0,0.00020897,2]
[425099876,1781495442000,-151.0,0.00020897,2]
[425099886,1781495442000,-1156.83,0.000209,7]
[425099883,1781495442000,-500.0,0.00020898,2]
[425099888,1781495442000,-12758.93,0.00020951,2]
[425099887,1781495442000,-9252.66,0.00020951,2]
[425099893,1781495442000,-6111.0,0.00021,2]
[425099861,1781495442000,-151.0,0.00020897,2]
[425099870,1781495442000,-151.0,0.00020897,2]
[425099866,1781495442000,-151.0,0.00020897,2]
[425099846,1781495442000,-151.0,0.00020897,2]
[425099858,1781495442000,-151.0,0.00020897,2]
[425099895,1781495442000,-15000.0,0.00021,2]
[425099832,1781495442000,-151.0,0.00020384,2]
[425099833,1781495442000,-500.0,0.00020547,2]
[425099835,1781495442000,-151.0,0.00020897,2]
[425099836,1781495442000,-200.0,0.00020897,2]
[425099834,1781495442000,-9978.39,0.00020548,2]
[425099844,1781495442000,-151.0,0.00020897,2]
[425099841,1781495442000,-151.0,0.00020897,2]
[425099838,1781495442000,-151.0,0.00020897,2]
[425099839,1781495442000,-151.0,0.00020897,2]
[425099837,1781495442000,-151.0,0.00020897,2]
[425099843,1781495442000,-151.0,0.00020897,2]
[425099860,1781495442000,-151.0,0.00020897,2]
[425099840,1781495442000,-151.0,0.00020897,2]
[425099845,1781495442000,-2080.17592889,0.00020897,2]
[425099848,1781495442000,-151.0,0.00020897,2]
[425099849,1781495442000,-151.0,0.00020897,2]
[425099850,1781495442000,-151.0,0.00020897,2]
[425099847,1781495442000,-151.0,0.00020897,2]
[425099852,1781495442000,-151.0,0.00020897,2]
[425099854,1781495442000,-151.0,0.00020897,2]
[425099855,1781495442000,-151.0,0.00020897,2]
[425099853,1781495442000,-500.0,0.00020897,2]
[425099851,1781495442000,-151.0,0.00020897,2]
[425099856,1781495442000,-500.0,0.00020897,2]
[425099859,1781495442000,-500.0,0.00020897,2]
[425099842,1781495442000,-151.0,0.00020897,2]
[425099890,1781495442000,-1891.58348531,0.00021,2]
[425099908,1781495442000,-426.0,0.00021,2]
[425099889,1781495442000,-2033.60789419,0.00020951,7]
[425099930,1781495442000,-578.20924308,0.00021205,2]
[425099928,1781495442000,-1191.11104074,0.00021205,2]
[425099926,1781495442000,-1148.61238259,0.00021205,2]
[425099929,1781495442000,-1235.18214925,0.00021205,2]
[425099925,1781495442000,-209.40437684,0.00021205,2]
[425099936,1781495442000,-151.0,0.00021205,2]
[425099933,1781495442000,-1377.42282658,0.00021205,2]
[425099934,1781495442000,-209.40437684,0.00021205,2]
[425099937,1781495442000,-1481.2378076,0.00021205,2]
[425099935,1781495442000,-1428.38747117,0.00021205,2]
[425099942,1781495442000,-721.12765534,0.00021205,2]
[425099941,1781495442000,-1592.87721992,0.00021205,2]
[425099943,1781495442000,-500.0,0.00021205,2]
[425099940,1781495442000,-151.0,0.00021205,2]
[425099938,1781495442000,-1536.04360648,0.00021205,2]
[425099939,1781495442000,-500.0,0.00021205,2]
[425099945,1781495442000,-151.0,0.00021205,2]
[425099944,1781495442000,-209.40437684,0.00021205,2]
[425099950,1781495442000,-152.0,0.00021205,2]
[425099947,1781495442000,-152.0,0.00021205,2]
[425099946,1781495442000,-731.92164327,0.00021205,2]
[425099948,1781495442000,-500.0,0.00021205,2]
[425099949,1781495442000,-500.0,0.00021205,2]
[425099951,1781495442000,-500.0,0.00021205,2]
[425099891,1781495442000,-1418.689983,0.00021,2]
[425099931,1781495442000,-1280.88388877,0.00021205,2]
[425099927,1781495442000,-174.61919141,0.00021205,2]
[425099952,1781495442000,-209.40437684,0.00021205,2]
[425099923,1781495442000,-200.72513036,0.00021205,2]
[425099892,1781495442000,-15000.0,0.00021,2]
[425099899,1781495442000,-1835.0,0.00021,2]
[425099901,1781495442000,-212.0,0.00021,2]
[425099897,1781495442000,-6111.0,0.00021,2]
[425099909,1781495442000,-228.0,0.00021,2]
[425099902,1781495442000,-182.0,0.00021,2]
[425099907,1781495442000,-156.0,0.00021,2]
[425099924,1781495442000,-154.67963625,0.00021205,2]
[425099904,1781495442000,-242.0,0.00021,2]
[425099903,1781495442000,-661.0,0.00021,2]
[425099906,1781495442000,-877.0,0.00021,2]
[425099911,1781495442000,-261.0,0.00021,2]
[425099905,1781495442000,-254.0,0.00021,2]
[425099912,1781495442000,-200.0,0.00021,2]
[425099914,1781495442000,-587.0,0.00021,2]
[425099922,1781495442000,-1107.63007,0.00021205,2]
[425099915,1781495442000,-1891.58348531,0.000212,2]
[425099919,1781495442000,-156.587,0.00021205,2]
[425099916,1781495442000,-399.68222012,0.00021205,2]
[425099932,1781495442000,-1328.27659266,0.00021205,2]
[425099917,1781495442000,-151.0,0.00021205,2]
[425099918,1781495442000,-1030.0,0.00021205,2]
[425099913,1781495442000,-216.0,0.00021,2]
[425099920,1781495442000,-1068.11,0.00021205,2]
[425099910,1781495442000,-157.0,0.00021,2]
[425099921,1781495442000,-358.31816607,0.00021205,2]
[425099988,1781495443000,-200.0,0.00021445,2]
[425099987,1781495443000,-151.0,0.00021425,2]
[425099989,1781495443000,-151.0,0.00021445,2]
[425099990,1781495443000,-2157.14243826,0.00021445,2]
[425099985,1781495443000,-1891.58348531,0.000214,2]
[425099983,1781495443000,-934.0,0.00021387,2]
[425099984,1781495443000,-3645.0,0.00021387,2]
[425099982,1781495443000,-1228.0,0.00021387,2]
[425099981,1781495443000,-383.0,0.00021387,2]
[425099986,1781495443000,-358.31816607,0.00021425,2]
[425099991,1781495443000,-3042.15578761,0.00021451,7]
[425100005,1781495443000,-358.31816607,0.000217,2]
[425099993,1781495443000,-151.0,0.0002148,2]
[425099994,1781495443000,-1440.98771749,0.00021513,2]
[425099997,1781495443000,-358.31816607,0.0002159,2]
[425099996,1781495443000,-151.0,0.00021535,2]
[425099999,1781495443000,-1891.58348531,0.000216,2]
[425099992,1781495443000,-358.31816607,0.0002148,2]
[425100001,1781495443000,-358.31816607,0.00021645,2]
[425100000,1781495443000,-877.8379198,0.00021615,2]
[425099998,1781495443000,-151.0,0.0002159,2]
[425100002,1781495443000,-151.0,0.00021645,2]
[425100003,1781495443000,-415.78,0.00021655,2]
[425099980,1781495443000,-1275.0,0.00021387,2]
[425099995,1781495443000,-358.31816607,0.00021535,2]
[425099979,1781495443000,-631.0,0.00021387,2]
[425099964,1781495443000,-500.0,0.00021205,2]
[425099976,1781495443000,-151.0,0.0002137,2]
[425100004,1781495443000,-7800.92,0.00021656,2]
[425099955,1781495443000,-152.0,0.00021205,2]
[425099953,1781495443000,-152.0,0.00021205,2]
[425099954,1781495443000,-500.0,0.00021205,2]
[425099957,1781495443000,-152.0,0.00021205,2]
[425099956,1781495443000,-500.0,0.00021205,2]
[425099958,1781495443000,-500.0,0.00021205,2]
[425099959,1781495443000,-152.0,0.00021205,2]
[425099967,1781495443000,-152.0,0.00021205,2]
[425099961,1781495443000,-152.0,0.00021205,2]
[425099962,1781495443000,-500.0,0.00021205,2]
[425099973,1781495443000,-151.0,0.00021315,2]
[425099963,1781495443000,-152.0,0.00021205,2]
[425099966,1781495443000,-152.0,0.00021205,2]
[425099965,1781495443000,-152.0,0.00021205,2]
[425099969,1781495443000,-151.0,0.0002126,2]
[425099968,1781495443000,-358.31816607,0.0002126,2]
[425099978,1781495443000,-3558.0,0.00021387,2]
[425099974,1781495443000,-685.0,0.00021344,2]
[425099970,1781495443000,-2307.9,0.00021273,2]
[425099971,1781495443000,-448.21,0.00021273,2]
[425099975,1781495443000,-358.31816607,0.0002137,2]
[425099972,1781495443000,-358.31816607,0.00021315,2]
[425099977,1781495443000,-1359.0,0.00021387,2]
[425099960,1781495443000,-500.0,0.00021205,2]
[425100008,1781495443000,-154.67963625,0.00021753,2]
[425100009,1781495443000,-217.15233878,0.00021753,2]
[425100010,1781495443000,-181.08010149,0.00021753,2]
[425100032,1781495443000,-661.0,0.00022,2]
[425100038,1781495443000,-426.0,0.00022,2]
[425100037,1781495443000,-156.0,0.00022,2]
[425100036,1781495443000,-2428.0,0.00022,2]
[425100040,1781495443000,-170.11765912,0.00022,2]
[425100039,1781495443000,-228.0,0.00022,2]
[425100047,1781495443000,-154.67963625,0.00022301,2]
[425100045,1781495443000,-383.0,0.00022222,5]
[425100051,1781495443000,-225.18697532,0.00022301,2]
[425100054,1781495443000,-206.21798825,0.00022407,2]
[425100050,1781495443000,-151.0,0.00022301,2]
[425100041,1781495443000,-261.0,0.00022,2]
[425100052,1781495443000,-808.7,0.00022353,2]
[425100055,1781495443000,-206.21798823,0.00022407,2]
[425100046,1781495443000,-399.68222012,0.00022301,2]
[425100049,1781495443000,-187.78006524,0.00022301,2]
[425100053,1781495443000,-243.86531756,0.00022407,2]
[425100057,1781495443000,-324.58757031,0.00022407,2]
[425100063,1781495443000,-279.34,0.00022466,2]
[425100059,1781495443000,-324.58757029,0.00022407,2]
[425100056,1781495443000,-206.21798823,0.00022407,2]
[425100058,1781495443000,-324.58757029,0.00022407,2]
[425100060,1781495443000,-4116.1428,0.00022451,7]
[425100061,1781495443000,-176.25,0.00022466,2]
[425100048,1781495443000,-225.18697532,0.00022301,2]
[425100044,1781495443000,-735.0,0.00022222,5]
[425100014,1781495443000,-358.31816616,0.00021755,2]
[425100042,1781495443000,-216.0,0.00022,2]
[425100043,1781495443000,-587.0,0.00022,2]
[425100006,1781495443000,-151.0,0.000217,2]
[425100062,1781495443000,-797.04,0.00022466,2]
[425100007,1781495443000,-399.68222012,0.00021753,2]
[425100011,1781495443000,-151.0,0.00021753,2]
[425100012,1781495443000,-217.15233878,0.00021753,2]
[425100013,1781495443000,-278.27669356,0.00021753,2]
[425100018,1781495443000,-173.41344453,0.00021819,2]
[425100019,1781495443000,-1891.58348531,0.000219,2]
[425100021,1781495443000,-195.48,0.0002196,2]
[425100023,1781495443000,-200.0,0.00021993,2]
[425100024,1781495443000,-2236.95670847,0.00021993,2]
[425100016,1781495443000,-151.0,0.00021755,2]
[425100022,1781495443000,-265.50557866,0.00021993,2]
[425100031,1781495443000,-182.0,0.00022,2]
[425100027,1781495443000,-450.0,0.00022,2]
[425100028,1781495443000,-5162.4017348,0.00022,30]
[425100025,1781495443000,-1418.689983,0.00022,2]
[425100030,1781495443000,-212.0,0.00022,2]
[425100029,1781495443000,-1835.0,0.00022,2]
[425100026,1781495443000,-1309.79,0.00022,2]
[425100033,1781495443000,-242.0,0.00022,2]
[425100034,1781495443000,-254.0,0.00022,2]
[425100020,1781495443000,-5000.0,0.00021918,2]
[425100035,1781495443000,-877.0,0.00022,2]
[425100105,1781495444000,-800.0,0.0002318,8]
[425100104,1781495444000,-800.0,0.0002318,8]
[425100102,1781495444000,-800.0,0.0002318,8]
[425100097,1781495444000,-800.0,0.0002318,8]
[425100099,1781495444000,-800.0,0.0002318,8]
[425100100,1781495444000,-800.0,0.0002318,8]
[425100098,1781495444000,-350.53557048,0.0002318,8]
[425100096,1781495444000,-800.0,0.0002318,8]
[425100094,1781495444000,-200.0,0.00023146,2]
[425100111,1781495444000,-151.0,0.00023397,2]
[425100093,1781495444000,-1440.98771749,0.0002311,2]
[425100112,1781495444000,-242.15909246,0.00023397,2]
[425100123,1781495444000,-205.79262684,0.00023899,2]
[425100109,1781495444000,-154.67963625,0.00023397,2]
[425100106,1781495444000,-873.93512374,0.0002318,8]
[425100110,1781495444000,-201.93286098,0.00023397,2]
[425100103,1781495444000,-800.0,0.0002318,8]
[425100107,1781495444000,-7800.92,0.00023313,7]
[425100114,1781495444000,-500.0,0.00023399,2]
[425100124,1781495444000,-225.18697532,0.00023943,2]
[425100115,1781495444000,-310.0,0.000234,2]
[425100116,1781495444000,-1000.0,0.000234,2]
[425100119,1781495444000,-200.0,0.00023637,2]
[425100101,1781495444000,-800.0,0.0002318,8]
[425100121,1781495444000,-290.0,0.0002368,2]
[425100108,1781495444000,-399.68222012,0.00023397,2]
[425100095,1781495444000,-800.0,0.0002318,8]
[425100081,1781495444000,-242.0,0.00023,2]
[425100087,1781495444000,-261.0,0.00023,2]
[425100067,1781495444000,-180.08459866,0.0002267,2]
[425100066,1781495444000,-217.15233878,0.00022574,2]
[425100122,1781495444000,-147644.44170597,0.0002375,2]
[425100065,1781495444000,-2319.72410669,0.00022541,2]
[425100068,1781495444000,-262.29225757,0.00022701,2]
[425100071,1781495444000,-280.16800983,0.00022849,2]
[425100069,1781495444000,-399.68222012,0.00022849,2]
[425100079,1781495444000,-182.0,0.00023,2]
[425100073,1781495444000,-151.0,0.00022849,2]
[425100070,1781495444000,-154.67963625,0.00022849,2]
[425100075,1781495444000,-205.79262684,0.00022897,2]
[425100076,1781495444000,-1418.689983,0.00023,2]
[425100092,1781495444000,-2405.55389863,0.00023089,2]
[425100078,1781495444000,-212.0,0.00023,2]
[425100074,1781495444000,-233.5188934,0.00022849,2]
[425100077,1781495444000,-1835.0,0.00023,2]
[425100080,1781495444000,-661.0,0.00023,2]
[425100091,1781495444000,-200.0,0.00023089,2]
[425100088,1781495444000,-200.0,0.00023,2]
[425100082,1781495444000,-254.0,0.00023,2]
[425100083,1781495444000,-877.0,0.00023,2]
[425100089,1781495444000,-216.0,0.00023,2]
[425100085,1781495444000,-426.0,0.00023,2]
[425100084,1781495444000,-156.0,0.00023,2]
[425100086,1781495444000,-228.0,0.00023,2]
[425100090,1781495444000,-587.0,0.00023,2]
[425100072,1781495444000,-194.72792766,0.00022849,2]
[425100117,1781495444000,-712.0,0.000234,2]
[425100064,1781495444000,-200.0,0.00022541,2]
[425100120,1781495444000,-2494.55939288,0.00023637,2]
[425100157,1781495444000,-1359.0,0.00024387,2]
[425100155,1781495444000,-808.7,0.00024324,2]
[425100156,1781495444000,-3558.0,0.00024387,2]
[425100158,1781495444000,-631.0,0.00024387,2]
[425100161,1781495444000,-1228.0,0.00024387,2]
[425100159,1781495444000,-1275.0,0.00024387,2]
[425100160,1781495444000,-383.0,0.00024387,2]
[425100151,1781495444000,-244.42,0.0002411,2]
[425100173,1781495444000,-1309.79,0.00024703,7]
[425100163,1781495444000,-3645.0,0.00024387,2]
[425100162,1781495444000,-934.0,0.00024387,2]
[425100164,1781495444000,-205.79262684,0.00024399,2]
[425100153,1781495444000,-2586.85809042,0.00024185,2]
[425100165,1781495444000,-399.68222012,0.00024493,2]
[425100167,1781495444000,-217.15233878,0.00024493,2]
[425100168,1781495444000,-151.0,0.00024493,2]
[425100170,1781495444000,-1000.0,0.00024658,2]
[425100172,1781495444000,-610.49,0.00024658,2]
[425100171,1781495444000,-1169.28,0.00024658,2]
[425100176,1781495444000,-1449.16737448,0.0002485,2]
[425100174,1781495444000,-1440.98771749,0.00024706,2]
[425100177,1781495444000,-1449.16737446,0.00024875,2]
[425100178,1781495444000,-1619.60867713,0.000249,2]
[425100175,1781495444000,-2682.57183977,0.00024733,2]
[425100179,1781495444000,-205.79262684,0.000249,2]
[425100113,1781495444000,-205.79262684,0.00023398,2]
[425100166,1781495444000,-154.67963625,0.00024493,2]
[425100154,1781495444000,-164.09,0.00024256,2]
[425100169,1781495444000,-260.4103811,0.00024493,2]
[425100150,1781495444000,-587.0,0.00024,2]
[425100152,1781495444000,-336.42071641,0.00024185,2]
[425100125,1781495444000,-599.60298507,0.00023944,2]
[425100128,1781495444000,-399.68222012,0.00023945,2]
[425100136,1781495444000,-500.0,0.00024,2]
[425100137,1781495444000,-1835.0,0.00024,2]
[425100129,1781495444000,-154.67963625,0.00023945,2]
[425100118,1781495444000,-152.0,0.00023435,3]
[425100127,1781495444000,-747.80937859,0.00023944,2]
[425100126,1781495444000,-151.0,0.00023944,2]
[425100130,1781495444000,-209.40437684,0.00023945,2]
[425100138,1781495444000,-212.0,0.00024,2]
[425100133,1781495444000,-500.0,0.00023999,2]
[425100134,1781495444000,-500.0,0.00023999,2]
[425100131,1781495444000,-151.0,0.00023945,2]
[425100135,1781495444000,-1418.689983,0.00024,2]
[425100132,1781495444000,-251.11897888,0.00023945,2]
[425100147,1781495444000,-261.0,0.00024,2]
[425100149,1781495444000,-150.0,0.00024,2]
[425100141,1781495444000,-242.0,0.00024,2]
[425100139,1781495444000,-182.0,0.00024,2]
[425100146,1781495444000,-228.0,0.00024,2]
[425100142,1781495444000,-254.0,0.00024,2]
[425100143,1781495444000,-877.0,0.00024,2]
[425100145,1781495444000,-426.0,0.00024,2]
[425100140,1781495444000,-661.0,0.00024,2]
[425100144,1781495444000,-156.0,0.00024,2]
[425100148,1781495444000,-216.0,0.00024,2]
[425100193,1781495445000,-12651.8513099,0.0002495,2]
[425100186,1781495445000,-500.0,0.00024949,2]